bitfinex/quotes_ETHUSD_20220101
["timestamp","ask_amount","ask_price","bid_price","bid_amount"]
[1641009202080,0.00852635,3727.5,3727.3,2.18417378]
[1641009202481,0.00795793,3727.4,3727.3,2.18417378]
[1641009202679,0.00795793,3727.4,3727.2,1.35865759]
[1641009203081,0.0073895,3727.3,3727.2,1.35865759]
[1641009203282,0.0073895,3727.3,3727.0,2.08794461]
[1641009203283,0.0073895,3727.3,3727.0,1.41535759]
[1641009203482,0.0073895,3727.3,3727.0,3.45628038]
[1641009203685,0.00682108,3727.2,3727.0,3.45628038]
[1641009203884,0.00682108,3727.2,3727.0,0.0567]
[1641009204087,0.11175691,3727.7,3726.9,1.02239278]
[1641009204088,0.00625266,3727.1,3726.9,1.02239278]
[1641009204483,0.00568423,3727.0,3726.9,1.02239278]
[1641009206928,0.00936568,3727.0,3726.9,1.02239278]
[1641009209190,0.00936568,3727.0,3726.9,3.1243827]
[1641009209492,0.00936568,3727.0,3726.9,1.02239278]
[1641009215325,0.00936568,3727.0,3726.9,3.20213558]
[1641009216567,0.00936568,3727.0,3726.9,2.65089278]
[1641009217467,0.00936568,3727.0,3726.9,4.00955037]
[1641009218472,0.00936568,3727.0,3726.9,7.22441976]
[1641009218875,0.00936568,3727.0,3726.9,9.65692117]
[1641009219472,0.00936568,3727.0,3726.9,11.48183738]
[1641009221023,0.00936568,3727.0,3726.9,9.65692117]
[1641009221224,0.06200226,3727.5,3727.0,4.45]
[1641009221423,0.06200226,3727.5,3727.1,2.31897054]
[1641009221624,0.0022737,3727.4,3727.2,0.67069]
[1641009221826,0.0022737,3727.4,3727.3,2.06758]
[1641009222024,0.06200226,3727.5,3727.3,2.06758]
[1641009222227,0.06200226,3727.5,3727.3,3.06758]
[1641009222425,0.06200226,3727.5,3727.4,2.06029367]
[1641009222630,0.06200226,3727.5,3727.4,3.06029367]
[1641009222827,0.06484438,3727.5,3727.4,3.06029367]
[1641009223226,0.00284212,3727.5,3727.4,3.06029367]
[1641009223425,0.00284212,3727.5,3727.4,2.06029367]
[1641009223626,0.00284212,3727.5,3727.4,3.06029367]
[1641009223867,0.00284212,3727.5,3727.4,2.06029367]
[1641009224069,0.00284212,3727.5,3727.4,3.73100367]
[1641009224370,0.00284212,3727.5,3727.4,2.79516084]
[1641009224571,0.00284212,3727.5,3727.4,1.67071]
[1641009224874,0.00284212,3727.5,3727.4,0.67071]
[1641009225069,0.00284212,3727.5,3727.4,2.78227321]
[1641009225470,0.00284212,3727.5,3727.4,3.78227321]
[1641009225870,0.00284212,3727.5,3727.4,3.77068314]
[1641009226274,0.00284212,3727.5,3727.4,1.67071]
[1641009226571,0.00284212,3727.5,3727.4,2.766951]
[1641009226971,0.00284212,3727.5,3727.4,3.766951]
[1641009227376,0.00284212,3727.5,3727.4,1.67071]
[1641009227621,0.00284212,3727.5,3727.4,0.67071]
[1641009228028,0.00284212,3727.5,3727.4,2.50483459]
[1641009228428,0.00284212,3727.5,3727.4,1.67071]
[1641009228629,0.00284212,3727.5,3727.4,0.67071]
[1641009228830,0.00284212,3727.5,3727.4,2.72126106]
[1641009229029,0.00284212,3727.5,3727.4,3.72126106]
[1641009229629,0.00284212,3727.5,3727.4,3.80664763]
[1641009229830,0.00284212,3727.5,3727.4,3.79562626]
[1641009230032,0.00284212,3727.5,3727.4,1.67071]
[1641009230531,0.00284212,3727.5,3727.4,2.7682618]
[1641009230730,0.00284212,3727.5,3727.4,2.73616214]
[1641009230930,0.00284212,3727.5,3727.4,3.73616214]
[1641009231379,0.00284212,3727.5,3727.4,1.67071]
[1641009231577,0.00284212,3727.5,3727.4,2.76054013]
[1641009231978,0.00284212,3727.5,3727.4,3.76054013]
[1641009233081,0.00284212,3727.5,3727.4,1.67071]
[1641009233283,0.00284212,3727.5,3727.0,6.04906036]
[1641009233684,0.0022737,3727.4,3727.0,6.04906036]
[1641009233883,0.0022737,3727.4,3727.0,8.07601108]
[1641009234083,0.00170527,3727.3,3727.0,6.04906036]
[1641009234484,0.00113685,3727.2,3727.0,8.07852459]
[1641009234684,0.00113685,3727.2,3727.0,4.69701955]
[1641009234885,0.00341054,3727.6,3727.0,0.12349257]
[1641009235134,0.00341054,3727.6,3727.0,2.14106504]
[1641009235339,0.00341054,3727.6,3727.0,2.07827247]
[1641009235639,0.00341054,3727.6,3727.1,0.67078]
[1641009235838,0.00341054,3727.6,3727.0,3.08870455]
[1641009236638,0.00341054,3727.6,3727.0,1.0607]
[1641009236837,0.00341054,3727.6,3727.0,3.09942591]
[1641009238242,0.00341054,3727.6,3727.0,1.0607]
[1641009238442,0.00341054,3727.6,3727.0,3.09081476]
[1641009238647,0.00341054,3727.6,3727.1,1.0]
[1641009239081,0.00341054,3727.6,3727.0,3.11820959]
[1641009239486,0.00341054,3727.6,3727.0,3.0873849]
[1641009239682,0.00341054,3727.6,3727.0,1.0607]
[1641009239882,0.00341054,3727.6,3727.0,3.11854028]
[1641009240087,0.00341054,3727.6,3727.1,1.0]
[1641009240284,0.00341054,3727.6,3727.2,2.16413798]
[1641009240684,0.00341054,3727.6,3727.2,2.83490798]
[1641009241088,0.00341054,3727.6,3727.3,1.0]
[1641009241290,0.00341054,3727.6,3727.4,2.13411613]
[1641009241688,0.00341054,3727.6,3727.2,2.12478636]
[1641009241888,0.00341054,3727.6,3727.1,0.3]
[1641009241889,0.00341054,3727.6,3727.4,2.02449112]
[1641009242187,0.00341054,3727.6,3727.2,2.20527991]
[1641009242632,0.00341054,3727.6,3727.3,0.67074]
[1641009242837,0.00341054,3727.6,3727.4,2.01797323]
[1641009243042,0.00341054,3727.6,3727.4,1.0]
[1641009243437,0.00341054,3727.6,3727.3,1.67074]
[1641009244035,0.00341054,3727.6,3727.4,2.03482351]
[1641009244236,0.00341054,3727.6,3727.3,0.67074]
[1641009244637,0.00341054,3727.6,3727.4,2.05434515]
[1641009244839,0.00341054,3727.6,3727.4,2.02544958]
[1641009245038,0.00341054,3727.6,3727.4,3.69616958]
[1641009245238,0.00341054,3727.6,3727.4,0.67072]
[1641009245437,0.00341054,3727.6,3727.5,1.0]
[1641009245640,0.00341054,3727.6,3727.4,0.67072]
[1641009245838,0.00341054,3727.6,3727.5,2.02663522]
[1641009246038,0.00341054,3727.6,3727.5,3.02663522]
[1641009246239,0.00341054,3727.6,3727.5,1.0]
[1641009246669,0.00341054,3727.6,3727.4,0.67072]
[1641009246869,0.00341054,3727.6,3727.4,2.69923436]
[1641009247070,0.00341054,3727.6,3727.5,3.05]
[1641009247268,0.00341054,3727.6,3727.5,3.74409203]
[1641009247874,0.00341054,3727.6,3727.3,2.74409203]
[1641009248275,0.00341054,3727.6,3727.5,1.82751516]
[1641009248672,0.00341054,3727.6,3727.4,2.02975717]
[1641009248872,0.00341054,3727.6,3727.3,2.74409203]
[1641009249372,0.00341054,3727.6,3727.4,2.08901361]
[1641009249772,0.00341054,3727.6,3727.4,4.77661468]
[1641009249974,0.00341054,3727.6,3727.4,2.74409203]
[1641009250219,0.00341054,3727.6,3727.3,2.74409203]
[1641009250425,0.00341054,3727.6,3727.4,2.0773179]
[1641009250832,0.00341054,3727.6,3727.5,2.74409203]
[1641009254272,0.00341054,3727.6,3727.5,4.79625747]
[1641009254674,0.00341054,3727.6,3727.5,2.74409203]
[1641009255577,0.00341054,3727.6,3727.4,0.67073]
[1641009255979,0.00341054,3727.6,3727.5,2.00846559]
[1641009256575,0.00341054,3727.6,3727.4,0.67073]
[1641009256777,0.00341054,3727.6,3727.4,1.67073]
[1641009257181,0.00341054,3727.6,3727.4,3.71791459]
[1641009257382,0.00341054,3727.6,3727.4,6.46200662]
[1641009257629,0.00341054,3727.6,3727.4,3.74409203]
[1641009258829,0.00341054,3727.6,3727.5,2.11880562]
[1641009259031,0.00341054,3727.6,3727.5,2.0]
[1641009259431,0.00341054,3727.6,3727.5,4.01806708]
[1641009259630,0.00341054,3727.6,3727.4,3.74409203]
[1641009259831,0.00341054,3727.6,3727.5,4.35786336]
[1641009260032,0.00341054,3727.6,3727.5,2.3]
[1641009260231,0.00341054,3727.6,3727.5,4.33287431]
[1641009260434,0.00341054,3727.6,3727.5,1.9]
[1641009260935,0.00341054,3727.6,3727.5,2.25]
[1641009261378,0.00341054,3727.6,3727.5,1.9]
[1641009261982,0.00341054,3727.6,3727.4,4.41480203]
[1641009262480,0.00341054,3727.6,3727.5,1.8]
[1641009262885,0.00341054,3727.6,3727.4,6.48588362]
[1641009263084,0.00341054,3727.6,3727.4,3.74409203]
[1641009263282,0.00341054,3727.6,3727.5,2.04808375]
[1641009263484,0.00341054,3727.6,3727.5,2.01856384]
[1641009263685,0.00341054,3727.6,3727.5,1.0]
[1641009264084,0.00341054,3727.6,3727.4,2.74409203]
[1641009264684,0.00341054,3727.6,3727.3,2.74409203]
[1641009264882,0.00341054,3727.6,3727.3,4.7806593]
[1641009265132,0.00341054,3727.6,3727.3,2.74409203]
[1641009265533,0.00341054,3727.6,3727.5,1.827513]
[1641009267040,0.00341054,3727.6,3727.4,1.827513]
[1641009270076,0.00341054,3727.6,3727.5,1.827513]
[1641009271284,0.00341054,3727.6,3727.3,3.74409203]
[1641009271485,0.00341054,3727.6,3727.4,2.00775716]
[1641009271683,0.00341054,3727.6,3727.5,2.01006155]
[1641009272483,0.00341054,3727.6,3727.3,3.74409203]
[1641009272758,0.00341054,3727.6,3727.3,2.74409203]
[1641009274455,0.00341054,3727.6,3727.5,1.82945244]
[1641009274665,0.67075,3728.2,3727.6,4.0]
[1641009274857,3.18719247,3728.7,3727.7,2.22576878]
[1641009275056,3.18719247,3728.7,3727.7,3.22576878]
[1641009275057,0.00284212,3728.1,3727.7,3.22576878]
[1641009275456,0.0022737,3728.0,3727.7,1.0]
[1641009275857,0.00170527,3727.9,3727.7,1.0]
[1641009276058,0.00170527,3727.9,3727.8,5.07053]
[1641009276256,2.83196261,3729.1,3727.9,2.74409203]
[1641009276478,2.83196261,3729.1,3727.9,18.43409203]
[1641009276680,0.00795793,3729.0,3728.0,1.0]
[1641009276877,0.00795793,3729.0,3728.0,16.69]
[1641009277080,0.00738951,3728.9,3728.1,2.30102213]
[1641009277579,0.00682109,3728.8,3728.6,1.37184815]
[1641009277783,0.00682109,3728.8,3728.7,2.00691125]
[1641009277984,2.83196261,3729.1,3728.7,2.00691125]
[1641009278284,0.00795793,3729.0,3728.7,4.3787594]
[1641009278687,0.00738951,3728.9,3728.7,4.3787594]
[1641009279083,0.00682109,3728.8,3728.7,4.3787594]
[1641009279286,0.00682109,3728.8,3728.7,1.33643125]
[1641009279488,0.00682109,3728.8,3728.4,4.57352698]
[1641009279685,0.00682109,3728.8,3728.0,1.37184815]
[1641009279884,0.00625266,3728.7,3728.0,1.37184815]
[1641009280124,0.00625266,3728.7,3728.0,2.37184815]
[1641009280324,0.108077,3729.0,3728.0,2.37184815]
[1641009280325,0.00568424,3728.6,3728.0,2.37184815]
[1641009280727,0.00511582,3728.5,3728.1,1.35025803]
[1641009281128,0.00454739,3728.4,3728.1,2.35025803]
[1641009281329,0.00454739,3728.4,3728.1,4.37096426]
[1641009281528,0.00397897,3728.3,3728.1,4.37096426]
[1641009281729,0.00397897,3728.3,3728.1,3.37096426]
[1641009281930,0.00341054,3728.2,3728.1,3.37096426]
[1641009282327,0.00341054,3728.2,3728.1,1.35025803]
[1641009282527,0.00341054,3728.2,3728.1,3.37442532]
[1641009283329,0.11148754,3728.2,3728.1,3.37442532]
[1641009283976,0.11148754,3728.2,3728.1,3.37817463]
[1641009284772,0.11148754,3728.2,3728.1,1.35025803]
[1641009284972,0.11148754,3728.2,3728.1,3.36592354]
[1641009285576,0.11148754,3728.2,3728.1,4.36592354]
[1641009286578,0.11148754,3728.2,3728.1,4.66592354]
[1641009286777,0.11148754,3728.2,3728.1,4.36592354]
[1641009288429,0.11148754,3728.2,3728.1,5.73777169]
[1641009291135,0.11148754,3728.2,3728.1,4.36592354]
[1641009294111,0.11148754,3728.2,3728.1,2.35025803]
[1641009294711,0.01148754,3728.2,3728.1,1.35025803]
[1641009297342,0.01148754,3728.2,3728.1,3.17953257]
[1641009298644,0.01148754,3728.2,3728.1,1.35025803]
[1641009299073,0.01148754,3728.2,3728.1,2.71864023]
[1641009300083,0.01148754,3728.2,3728.1,3.71864023]
[1641009300281,0.01148754,3728.2,3728.1,5.78193291]
[1641009301078,0.01148754,3728.2,3728.1,4.41355071]
[1641009301481,0.01148754,3728.2,3728.1,3.69131803]
[1641009301680,0.01148754,3728.2,3728.1,5.52059257]
[1641009301881,0.01148754,3728.2,3728.1,7.56686832]
[1641009302482,0.01148754,3728.2,3728.1,5.52059257]
[1641009302925,0.01148754,3728.2,3728.1,7.57705679]
[1641009303327,0.01148754,3728.2,3728.1,5.52059257]
[1641009303527,0.01148754,3728.2,3728.1,3.17953257]
[1641009305231,0.01148754,3728.2,3728.1,1.35025803]
[1641009306032,0.01148754,3728.2,3727.7,1.36848074]
[1641009306480,0.01148754,3728.2,3727.8,1.37075443]
[1641009306887,0.01148754,3728.2,3727.9,0.00170527]
[1641009307686,0.01148754,3728.2,3727.7,0.00284211]
[1641009307892,1.29027754,3728.2,3727.7,0.00284211]
[1641009308489,1.29027754,3728.2,3727.6,0.00341054]
[1641009308690,1.89027754,3728.2,3727.6,0.00341054]
[1641009308890,0.67094,3727.9,3727.6,0.00341054]
[1641009309088,0.97094,3727.9,3727.6,0.00341054]
[1641009309289,0.97094,3727.9,3727.4,0.00454738]
[1641009309489,0.3,3727.9,3727.4,0.00454738]
[1641009309891,0.6709101,3728.0,3727.4,0.00454738]
[1641009310139,0.6709101,3728.0,3727.2,1.36848074]
[1641009310140,0.67095,3727.7,3727.3,0.00511581]
[1641009311147,0.67095,3727.7,3727.2,0.00568423]
[1641009311345,0.67095,3727.7,3727.2,1.37416497]
[1641009311747,0.67095,3727.7,3727.3,0.00511581]
[1641009314787,2.71491093,3727.7,3727.3,0.00511581]
[1641009315592,0.67099,3727.5,3727.3,0.00511581]
[1641009315787,2.09336235,3727.4,3727.3,0.00511581]
[1641009315989,2.39336235,3727.4,3727.3,0.00511581]
[1641009316591,1.92349405,3727.2,3726.9,0.0073895]
[1641009316993,2.22349405,3727.2,3726.9,0.0073895]
[1641009317733,0.97103,3727.2,3726.9,0.0073895]
[1641009319533,1.6364783,3727.2,3726.5,0.00966319]
[1641009319734,0.67104,3726.9,3726.5,0.00966319]
[1641009320742,3.3419857,3728.1,3726.5,0.00966319]
[1641009320937,3.3419857,3728.1,3726.5,0.99486319]
[1641009320938,1.34179,3728.0,3726.5,0.99486319]
[1641009321136,2.22576878,3728.0,3726.5,2.29486319]
[1641009321388,0.01148754,3728.2,3726.6,0.00909477]
[1641009321590,1.03846626,3728.2,3726.6,0.00909477]
[1641009321790,1.03846626,3728.2,3726.7,0.01257343]
[1641009322091,1.03846626,3728.2,3727.0,0.67077]
[1641009322592,1.03846626,3728.2,3727.1,0.00625265]
[1641009323193,1.70925626,3728.2,3727.1,0.00625265]
[1641009323794,1.70925626,3728.2,3726.9,0.0073895]
[1641009323995,2.06556106,3728.1,3726.9,0.0073895]
[1641009324193,0.67085,3727.9,3726.9,0.0073895]
[1641009328143,0.97085,3727.9,3726.9,0.0073895]
[1641009328546,0.67085,3727.9,3726.9,0.0073895]
[1641009337473,2.0594921,3727.8,3726.9,0.0073895]
[1641009337675,0.67085,3727.9,3726.9,0.0073895]
[1641009337877,0.6708,3728.1,3726.9,0.0073895]
[1641009338176,0.9708,3728.1,3726.9,0.0073895]
[1641009338377,3.05796672,3728.1,3726.9,0.0073895]
[1641009338976,0.9708,3728.1,3726.9,0.0073895]
[1641009343032,0.6708,3728.1,3726.9,0.6781695]
[1641009343231,0.6708,3728.1,3727.7,1.2958838]
[1641009344682,0.6708,3728.1,3727.3,1.36848074]
[1641009344891,2.05197702,3728.0,3727.3,1.36848074]
[1641009345088,0.6708,3728.1,3727.4,0.00454738]
[1641009345890,0.6708,3728.1,3727.3,0.00511581]
[1641009346790,0.6708,3728.1,3727.4,1.36848074]
[1641009346989,0.9708,3728.1,3727.4,2.57814857]
[1641009347192,0.9708,3728.1,3727.5,0.00397896]
[1641009347631,0.3,3728.1,3727.5,0.00397896]
[1641009347837,0.01148754,3728.2,3727.5,0.00397896]
[1641009348041,0.01148754,3728.2,3727.4,0.00454738]
[1641009348638,0.67083,3727.9,3727.3,0.00511581]
[1641009349938,0.95173637,3728.3,3727.4,1.36848074]
[1641009350341,0.95173637,3728.3,3727.5,0.00397896]
[1641009351042,0.67081,3728.0,3727.5,1.3724597]
[1641009351243,0.67081,3728.0,3727.5,0.00397896]
[1641009351491,0.67081,3728.0,3727.6,0.00341054]
[1641009351689,0.67081,3728.0,3727.5,0.00397896]
[1641009351891,1.35981337,3728.3,3727.5,1.36848074]
[1641009352290,1.35981337,3728.3,3727.6,0.00341054]
[1641009352888,0.67079,3728.1,3727.6,0.00341054]
[1641009353189,0.67079,3728.1,3727.5,1.36848074]
[1641009353588,0.67079,3728.1,3727.6,0.00341054]
[1641009354190,0.67079,3728.1,3727.6,1.37189128]
[1641009354594,0.67079,3728.1,3727.7,0.00284211]
[1641009354991,0.67079,3728.1,3727.6,0.00341054]
[1641009355730,0.67079,3728.1,3727.6,1.37189128]
[1641009356232,0.67079,3728.1,3727.7,0.00284211]
[1641009356832,0.67079,3728.1,3727.6,0.00341054]
[1641009358435,0.67079,3728.1,3727.5,0.00397896]
[1641009358884,0.67079,3728.1,3727.5,1.3724597]
[1641009359284,0.67079,3728.1,3727.6,0.00341054]
[1641009359888,0.67079,3728.1,3727.5,0.00397896]
[1641009360087,0.67079,3728.1,3727.5,1.3724597]
[1641009360488,0.67079,3728.1,3727.6,0.00341054]
[1641009363141,0.67079,3728.1,3727.6,1.37189128]
[1641009363544,0.67079,3728.1,3727.7,0.00284211]
[1641009366580,0.67079,3728.1,3727.7,1.37132285]
[1641009366984,0.67079,3728.1,3727.7,1.36848074]
[1641009367582,0.67083,3727.9,3727.7,1.36848074]
[1641009367985,0.97083,3727.9,3727.6,1.36848074]
[1641009368185,0.3,3727.9,3727.6,1.36848074]
[1641009368384,1.64172,3728.0,3727.7,0.00284211]
[1641009368987,1.64172,3728.0,3727.6,0.00341054]
[1641009369789,0.67087,3727.8,3727.6,0.00341054]
[1641009372638,1.671154,3728.0,3727.6,1.37189128]
[1641009373043,1.371154,3728.0,3727.7,0.00284211]
[1641009373638,1.371154,3728.0,3727.7,1.37132285]
[1641009375077,0.700344,3728.0,3727.7,1.37132285]
[1641009376081,0.700344,3728.0,3727.7,0.00284211]
[1641009376484,0.700344,3728.0,3727.4,0.00454738]
[1641009376886,0.700344,3728.0,3727.5,1.36848074]
[1641009377285,0.700344,3728.0,3727.6,0.00341054]
[1641009377744,0.700344,3728.0,3727.6,1.37189128]
[1641009378150,0.700344,3728.0,3727.7,0.00284211]
[1641009379647,1.371134,3728.0,3727.7,0.00284211]
[1641009380451,1.371134,3728.0,3727.6,1.37189128]
[1641009380854,1.371134,3728.0,3727.7,0.00284211]
[1641009381477,1.371134,3728.0,3727.6,0.00341054]
[1641009381680,1.479211,3728.0,3727.6,1.37189128]
[1641009382083,1.479211,3728.0,3727.7,0.00284211]
[1641009382285,1.479211,3728.0,3727.7,1.37132285]
[1641009384387,1.479211,3728.0,3727.7,0.00284211]
[1641009385629,1.479211,3728.0,3727.7,1.37132285]
[1641009386132,1.479211,3728.0,3727.7,0.00284211]
[1641009387132,1.479211,3728.0,3727.7,1.37132285]
[1641009387734,1.479211,3728.0,3727.8,1.36848074]
[1641009388134,1.479211,3728.0,3727.9,0.00170527]
[1641009389999,0.10710701,3728.0,3727.9,0.00170527]
[1641009390696,0.77789701,3728.0,3727.7,0.00284211]
[1641009391098,0.40710701,3728.0,3727.7,0.00284211]
[1641009391697,0.3,3728.0,3727.7,0.00284211]
[1641009392296,3.03010613,3727.9,3727.6,0.00341054]
[1641009392496,3.03010613,3727.8,3727.6,0.00341054]
[1641009392733,0.3,3728.0,3727.6,0.00341054]
[1641009392734,3.70093613,3727.9,3727.6,0.00341054]
[1641009392933,3.03010613,3727.8,3727.6,0.00341054]
[1641009393132,3.13818313,3727.8,3727.6,0.00341054]
[1641009393535,3.13818313,3727.8,3727.6,1.37189128]
[1641009393935,3.13818313,3727.8,3727.7,0.00284211]
[1641009394740,3.80901313,3727.8,3727.7,0.00284211]
[1641009396993,4.40901313,3727.8,3727.7,0.00284211]
[1641009397396,3.73818313,3727.8,3727.5,0.00397896]
[1641009397598,3.58401732,3727.7,3727.5,0.00397896]
[1641009397798,2.91315732,3727.6,3727.5,0.00397896]
[1641009397995,2.91315732,3727.6,3727.4,0.00454738]
[1641009398194,2.91315732,3727.7,3727.4,0.00454738]
[1641009398595,2.91315732,3727.7,3727.3,0.00511581]
[1641009399297,0.67094,3727.5,3727.2,0.00568423]
[1641009399497,2.52578513,3727.5,3727.2,0.00568423]
[1641009400358,2.52578513,3727.5,3727.2,1.37416497]
[1641009400757,2.52578513,3727.5,3727.3,0.00511581]
[1641009401557,3.12578513,3727.5,3727.3,0.00511581]
[1641009401757,3.36982896,3727.4,3727.3,0.00511581]
[1641009402362,3.36982896,3727.4,3727.1,1.36848074]
[1641009402363,3.36982896,3727.4,3727.2,0.00568423]
[1641009403565,3.36982896,3727.4,3727.2,1.37416497]
[1641009403888,3.47790596,3727.4,3727.3,0.00511581]
[1641009404496,3.47790596,3727.4,3727.3,1.37359655]
[1641009404695,2.80696596,3727.4,3727.3,1.37359655]
[1641009406295,1.96832108,3727.4,3727.3,1.37359655]
[1641009408241,1.96832108,3727.4,3727.3,0.00511581]
[1641009408738,1.96832108,3727.4,3727.2,1.80995877]
[1641009409139,1.96832108,3727.4,3727.3,0.00511581]
[1641009414497,1.13752068,3727.4,3727.1,0.00625265]
[1641009416845,1.13752068,3727.4,3727.0,2.75091311]
[1641009417047,1.13752068,3727.4,3727.1,0.00625265]
[1641009417846,1.13752068,3727.4,3727.3,1.82517255]
[1641009418248,1.13752068,3727.4,3727.3,1.83028836]
[1641009418448,0.63525759,3727.4,3727.3,1.83028836]
[1641009419493,0.63525759,3727.4,3727.3,0.00511581]
[1641009420596,0.63525759,3727.4,3727.3,1.83028836]
[1641009421801,0.63525759,3727.4,3727.3,0.00511581]
[1641009422635,0.63525759,3727.4,3727.2,1.83085678]
[1641009423047,0.63525759,3727.4,3727.3,0.00511581]
[1641009423644,0.63525759,3727.4,3727.2,0.00568423]
[1641009423946,0.63525759,3727.4,3727.2,1.83085678]
[1641009424146,0.63525759,3727.4,3727.2,0.00568423]
[1641009424348,0.63525759,3727.4,3727.3,0.00511581]
[1641009424545,0.63525759,3727.4,3727.2,0.00568423]
[1641009424745,1.30615759,3727.4,3727.2,0.00568423]
[1641009427195,6.59784282,3727.3,3726.4,0.06318841]
[1641009427400,0.92097968,3726.3,3726.0,4.54765804]
[1641009427595,1.43368649,3726.3,3726.0,4.54765804]
[1641009427796,0.3,3726.2,3726.0,4.54765804]
[1641009428000,0.81270681,3726.2,3726.0,4.54765804]
[1641009428205,2.1836352,3726.2,3726.1,4.57473556]
[1641009428395,0.3,3726.2,3726.1,4.57473556]
[1641009428997,0.3,3726.2,3725.4,1.08699543]
[1641009429199,0.67119,3725.8,3725.4,1.08699543]
[1641009429399,0.67119,3725.8,3725.5,0.0096632]
[1641009429599,0.97119,3725.8,3725.5,0.0096632]
[1641009429797,1.27119,3725.8,3725.5,0.0096632]
[1641009429998,1.27119,3725.8,3725.5,0.01052108]
[1641009430254,1.88652191,3726.0,3725.5,0.01052108]
[1641009430454,1.88652191,3726.0,3725.6,0.00909478]
[1641009431652,0.67119,3725.8,3725.6,0.00909478]
[1641009435799,0.67116,3726.0,3725.6,0.00909478]
[1641009436003,0.97116,3726.0,3725.6,0.00909478]
[1641009436605,1.27116,3726.0,3725.6,0.00909478]
[1641009437505,0.67118,3725.9,3725.6,0.00909478]
[1641009437943,0.97118,3725.9,3725.6,0.00909478]
[1641009439143,0.67118,3725.9,3725.6,0.00909478]
[1641009439344,0.97118,3725.9,3725.6,0.00909478]
[1641009440747,1.27118,3725.9,3725.6,0.00909478]
[1641009441150,1.9776635,3725.8,3725.6,0.00909478]
[1641009441396,3.22126,3725.7,3725.6,0.00909478]
[1641009441595,3.03159076,3725.7,3725.6,0.00909478]
[1641009442598,3.33159076,3725.7,3725.6,0.00909478]
[1641009448546,0.3,3725.6,3724.7,1.22674965]
[1641009448750,0.6713,3725.3,3724.7,1.22674965]
[1641009448994,0.6713,3725.3,3724.8,0.00454738]
[1641009452493,0.6713,3725.3,3724.9,1.35899634]
[1641009452941,0.6713,3725.3,3725.0,0.00341054]
[1641009456591,0.6713,3725.3,3724.9,0.00397896]
[1641009462041,0.67125,3725.5,3725.3,1.36220497]
[1641009462238,2.74971845,3726.1,3725.3,1.36220497]
[1641009462442,2.74971845,3726.1,3725.4,0.00113684]
[1641009462443,0.70081737,3726.1,3725.4,0.00113684]
[1641009462641,0.00113685,3725.8,3725.4,0.00113684]
[1641009463041,0.00341055,3726.2,3725.4,0.00113684]
[1641009463441,0.92097968,3726.3,3726.1,1.0624617]
[1641009463643,1.59208968,3726.3,3726.1,1.0624617]
[1641009463888,0.00341055,3726.2,3726.1,1.0624617]
[1641009464492,0.00341055,3726.2,3725.4,0.00113684]
[1641009464894,0.00284212,3726.1,3725.4,0.00113684]
[1641009465194,0.0022737,3726.0,3725.4,0.00113684]
[1641009465596,0.00170528,3725.9,3725.4,0.00113684]
[1641009465796,0.00170528,3725.9,3725.8,1.34688592]
[1641009465998,0.67114,3726.2,3725.8,1.34688592]
[1641009466397,0.00284212,3726.1,3725.8,1.34688592]
[1641009466799,0.0022737,3726.0,3725.8,1.34688592]
[1641009467098,0.00170528,3725.9,3725.8,1.34688592]
[1641009467941,0.00170528,3725.9,3725.7,1.35899634]
[1641009468143,0.67122,3725.8,3725.7,1.35899634]
[1641009468341,0.67235685,3725.8,3725.7,1.35899634]
[1641009468541,0.97235685,3725.8,3725.7,1.35899634]
[1641009468741,0.97235685,3725.8,3725.4,1.81646207]
[1641009468742,1.27235685,3725.8,3725.5,1.35899634]
[1641009468946,0.60113685,3725.8,3725.5,2.59705717]
[1641009469142,0.30113685,3725.8,3725.5,2.59705717]
[1641009469342,0.67125,3725.7,3725.5,1.23806083]
[1641009469543,0.97125,3725.7,3725.5,1.23806083]
[1641009470346,0.67125,3725.7,3725.5,1.23806083]
[1641009471790,0.67125,3725.7,3725.5,2.59705717]
[1641009471990,0.779327,3725.7,3725.5,2.59705717]
[1641009473402,1.079327,3725.7,3725.6,1.35899634]
[1641009479101,1.079327,3725.7,3725.6,1.28201139]
[1641009479900,1.079327,3725.7,3725.5,1.35899634]
[1641009481101,0.779327,3725.7,3725.5,1.35899634]
[1641009481902,0.779327,3725.7,3725.6,1.3721158]
[1641009482108,0.779327,3725.7,3725.6,2.73111214]
[1641009484746,0.779327,3725.7,3725.6,2.61134663]
[1641009485143,0.779327,3725.7,3725.6,1.25235029]
[1641009486592,0.729327,3725.7,3725.6,1.25235029]
[1641009489399,0.108077,3725.7,3725.6,1.25235029]
[1641009489600,0.108077,3725.7,3725.6,3.08173197]
[1641009490654,0.108077,3725.7,3725.6,1.25235029]
[1641009498961,0.779267,3725.7,3725.6,1.25235029]
[1641009505753,0.779267,3725.7,3725.6,3.08170562]
[1641009509504,0.779267,3725.7,3725.6,1.25235029]
[1641009516258,0.108077,3725.7,3725.6,1.25235029]
[1641009524603,0.108077,3725.7,3725.6,3.26424141]
[1641009526102,0.108077,3725.7,3725.6,1.25235029]
[1641009528651,0.108077,3725.7,3725.6,3.08270582]
[1641009531506,0.108077,3725.7,3725.6,1.25235029]
[1641009539404,0.108077,3725.7,3725.6,2.62361016]
[1641009541405,0.108077,3725.7,3725.6,1.25235029]
[1641009545266,0.108077,3725.7,3725.6,1.29505029]
[1641009547304,2.94348894,3725.7,3725.6,0.0427]
[1641009547704,0.779287,3725.7,3725.6,0.0427]
[1641009548707,0.779287,3725.7,3725.3,0.0427]
[1641009549106,5.21975172,3725.7,3725.3,0.0427]
[1641009549307,0.67146,3725.5,3725.3,0.0427]
[1641009549906,1.67146,3725.5,3725.3,0.0427]
[1641009551364,5.39703376,3725.4,3725.3,0.0427]
[1641009551564,3.19703376,3725.4,3725.3,0.0427]
[1641009551763,3.49703376,3725.4,3725.3,0.00170527]
[1641009552165,0.6714,3725.2,3725.0,0.00341054]
[1641009552367,1.97557635,3725.1,3725.0,0.00341054]
[1641009552770,2.27557635,3725.1,3725.0,0.00341054]
[1641009554514,0.3,3725.1,3725.0,0.00341054]
[1641009554713,2.32893931,3725.1,3725.0,0.00341054]
[1641009554913,1.6428012,3725.2,3725.0,0.00341054]
[1641009555114,1.6428012,3725.2,3725.0,0.04611054]
[1641009555517,1.6428012,3725.2,3725.1,0.00284211]
[1641009555714,3.71925749,3725.2,3725.1,0.00284211]
[1641009557521,0.9714,3725.2,3725.1,0.00284211]
[1641009558152,0.9714,3725.2,3725.1,0.04554211]
[1641009585502,0.9714,3725.2,3725.1,0.0427]
[1641009586902,0.9714,3725.2,3724.9,0.0427]
[1641009587104,0.67143,3725.0,3724.9,0.0427]
[1641009587877,1.37234484,3725.0,3724.9,0.0427]
[1641009595165,3.53654678,3725.0,3724.9,0.0427]
[1641009595375,4.53654678,3725.0,3724.9,0.0427]